Workbook

Sheet раздел 1
CL2: Приложение № 1 к Порядку
CI3: Утверждаю
CI4: Заместитель директора
CI5: (наименование должности уполномоченного лица)
CI6: МАУ "МДЦ "Восход""
CI7: (наименование Учредителя (Учреждения)
CL8: Гырля М.С.
CI9: (подпись) | CL9: (расшифровка подписи)
CN10: 20 | CT10: г.
BJ12: План финансово-хозяйственной деятельности на 20 | BK12: 20 | BN12: г.
Q13: (на 20 | X13: 20 | AA13: г. и плановый период 20 | AW13: 21 | AZ13: и 20 | BE13: 22 | BH13: годов 1) | CM13: Коды
Y15: от " | AF15: " | AX15: 20 | BD15: г.2 | CL15: Дата
A16: Орган, осуществляющий | CK16: по Сводному реестру
A17: функции и полномочия учредителя | AB17: Администрация муниципального образования Киришский муниципальный район Ленинградской области | CK17: глава по БК
CK18: по Сводному реестру
CL19: ИНН | CM19: 4708020562
A20: Учреждение | AB20: Муниципальное автономное учреждение «Молодёжно-досуговый центр «Восход» муниципального образования «Киришское городское поселение Киришского муниципального района Ленинградской области» (МАУ « МДЦ «ВОСХОД») | CL20: КПП | CM20: 472701001
A21: Единица измерения: руб. | CM21: 383
A22: Раздел 1. Поступления и выплаты
A24: Наименование показателя | AP24: Код строки | AX24: Код по бюджетной классификации Российской Федерации 3 | BK24: Аналитический код 4 | BX24: Сумма
BY25: на 20 | BZ25: 20г. | CD25: на 20 | CE25: 21г. | CI25: на 20 | CJ25: 22г. | CM25: за пределами планового периода
BX26: текущий финансовый год | CC26: первый год планового периода | CH26: второй год планового периода
BX27: ВСЕГО | BY27: субсидии на финансовое обеспечение выполнения муниципального задания | BZ27: целевые субсидии | CA27: субсидии на осуществление капитальных вложений | CB27: поступления от оказания услуг (выполнения работ) на платной основе и иной приносящей доход деятельности | CC27: ВСЕГО | CD27: субсидии на финансовое обеспечение выполнения муниципального задания | CE27: целевые субсидии | CF27: субсидии на осуществление капитальных вложений | CG27: поступления от оказания услуг (выполнения работ) на платной основе и иной приносящей доход деятельности | CH27: ВСЕГО | CI27: субсидии на финансовое обеспечение выполнения муниципального задания | CJ27: целевые субсидии | CK27: субсидии на осуществление капитальных вложений | CL27: поступления от оказания услуг (выполнения работ) на платной основе и иной приносящей доход деятельности
A28: 1 | AP28: 2 | AX28: 3 | BK28: 4 | BX28: 5 | BY28: 6 | BZ28: 7 | CA28: 8 | CB28: 9 | CC28: 5 | CD28: 6 | CE28: 7 | CF28: 8 | CG28: 9 | CH28: 5 | CI28: 6 | CJ28: 7 | CK28: 8 | CL28: 9 | CM28: 20
A29: Остаток средств на начало текущего финансового года 5 | AP29: 0001 | AX29: х | BK29: х | BY29: 1309889.52 | CB29: 2892.77
A30: Остаток средств на конец текущего финансового года 5 | AP30: 0002 | AX30: х | BK30: х
A31: Доходы, всего: | AP31: 1000 | BX31: =BX36+BX37+BZ31 -> 27972298.64 | BY31: =BY36 -> 20369101.89 | BZ31: =BZ44 -> 1546921.8 | CB31: =CB37 -> 6056274.95 | CC31: =CC36+CC37+CE31 -> 30328506.18 | CD31: =CD36 -> 23102737.7 | CE31: =CE44 -> 1395476.84 | CG31: =CG37 -> 5830291.64 | CH31: =CH36+CH37+CJ31 -> 30328506.18 | CI31: =CI36 -> 23102737.7 | CJ31: =CJ44 -> 1395476.84 | CL31: =CL37 -> 5830291.64
A32: в том числе: доходы от собственности, всего | AP32: 1100 | AX32: 120
A33: в том числе: | AP33: 1110
A35: доходы от оказания услуг, работ, компенсации затрат учреждений, всего | AP35: 1200 | AX35: 130 | BX35: =BX36+BX37+BX44 -> 27972298.64 | BY35: =BY36+BY37+BY44 -> 20369101.89 | BZ35: =BZ44 -> 1546921.8 | CB35: =CB36+CB37+CB44 -> 6056274.95 | CC35: =CC36+CC37+CC44 -> 30328506.18 | CD35: 23102737.7 | CE35: =CE44 -> 1395476.84 | CG35: =CG36+CG37+CG44 -> 5830291.64 | CH35: 30328506.18 | CI35: 23102737.7 | CJ35: =CJ44 -> 1395476.84 | CL35: =CL36+CL37+CL44 -> 5830291.64
A36: в том числе: субсидии на финансовое обеспечение выполнения муниципального задания за счет средств бюджета публично-правового образования, создавшего учреждение | AP36: 1210 | AX36: 131 | BX36: =BY36 -> 20369101.89 | BY36: =23422737.7-3053635.81 -> 20369101.89 | CC36: =CD36 -> 23102737.7 | CD36: =23422737.7-320000 -> 23102737.7 | CH36: =CI36 -> 23102737.7 | CI36: =23422737.7-320000 -> 23102737.7
A37: поступления от оказания услуг (выполнения работ) на платной основе и иной приносящей доход деятельности всего | AP37: 1220 | AX37: 131 | BX37: =CB37 -> 6056274.95 | CB37: =5830291.64+225983.31 -> 6056274.95 | CC37: =CG37 -> 5830291.64 | CG37: =CG58 -> 5830291.64 | CH37: =CL37 -> 5830291.64 | CL37: =CL58 -> 5830291.64
A38: доходы от штрафов, пеней, иных сумм принудительного изъятия, всего | AP38: 1300 | AX38: 140
A39: в том числе: | AP39: 1310 | AX39: 140
A41: безвозмездные денежные поступления, всего | AP41: 1400 | AX41: 150
A42: в том числе:
A44: прочие доходы, всего | AP44: 1500 | AX44: 152 | BX44: =BX46 -> 1546921.8 | BZ44: =BZ46 -> 1546921.8 | CC44: =CC46 -> 1395476.84 | CE44: =CE46 -> 1395476.84 | CH44: =CH46 -> 1395476.84 | CJ44: =CJ46 -> 1395476.84
A45: в том числе:
A46: целевые субсидии | BX46: =SUM(BX47:BX50) -> 1546921.8 | BZ46: =SUM(BZ47:BZ50) -> 1546921.8 | CC46: =SUM(CC47:CC50) -> 1395476.84 | CE46: =SUM(CE47:CE50) -> 1395476.84 | CH46: =SUM(CH47:CH50) -> 1395476.84 | CJ46: =SUM(CJ47:CJ50) -> 1395476.84
A47: Работы с детьми и молодежью в подведомственных учреждениях (ремонт имущества и благоустройство территории) | AP47: 1520 | AX47: 152 | BX47: =BZ47 -> 630232.4 | BZ47: 630232.4 | CC47: =CE47 -> 0 | CH47: =CJ47 -> 0
A48: Работа с детьми и молодежью в подведомственных учреждениях (приобретение основных средств и материальных запасов) | AP48: 1521 | AX48: 152 | BX48: =BZ48 -> 684704 | BZ48: =976350.24-291646.24 -> 684704 | CC48: =CE48 -> 976350.24 | CE48: 976350.24 | CH48: =CJ48 -> 976350.24 | CJ48: 976350.24
A49: Поддержка деятельности молодежных общественных организаций, объединений, инициатив и развитие добровольческого (волонтерского) движения, содействию трудовой адаптации и занятости молодежи (Губернаторский молодежный отряд) | AP49: 1522 | AX49: 152 | BX49: =BZ49 -> 171885.4 | BZ49: =359026.6-187141.2 -> 171885.4 | CC49: =CE49 -> 359026.6 | CE49: 359026.6 | CH49: =CJ49 -> 359026.6 | CJ49: 359026.6
A50: Реализация комплекса мер по сохранению исторической памяти | AP50: 1523 | AX50: 152 | BX50: =BZ50 -> 60100 | BZ50: 60100 | CC50: =CE50 -> 60100 | CE50: 60100 | CH50: =CJ50 -> 60100 | CJ50: 60100
A51: доходы от операций с активами, всего | AP51: 1900 | AX51: 510 | BX51: =BY51 -> 40506.78 | BY51: 40506.78
A52: в том числе:
A55: прочие поступления, всего 6 | AP55: 1980 | AX55: х | BX55: =BX56 -> 40506.78 | BY55: =BY56 -> 40506.78
A56: из них: увеличение остатков денежных средств за счет возврата дебиторской задолженности прошлых лет | AP56: 1981 | AX56: 510 | BX56: 40506.78 | BY56: 40506.78 | CM56: х
A58: Расходы, всего | AP58: 2000 | AX58: х | BX58: =BY58+BZ58+CA58+CB58 -> 29325587.71 | BY58: =BY59+BY80+BY92 -> 21719498.19 | BZ58: =BZ59+BZ80+BZ92 -> 1546921.8 | CB58: =CB59+CB80+CB92+CB89 -> 6059167.718 | CC58: =CD58+CE58+CF58+CG58 -> 30328506.18 | CD58: =CD59+CD80+CD92 -> 23102737.7 | CE58: =CE59+CE80+CE92 -> 1395476.84 | CG58: =CG59+CG80+CG92 -> 5830291.64 | CH58: =CI58+CJ58+CK58+CL58 -> 30328506.18 | CI58: =CI59+CI80+CI92 -> 23102737.7 | CJ58: =CJ59+CJ80+CJ92 -> 1395476.84 | CL58: =CL59+CL80+CL92 -> 5830291.64
A59: в том числе: на выплаты персоналу, всего | AP59: 2100 | AX59: х | BX59: =BY59+BZ59+CA59+CB59 -> 19126247.19 | BY59: =BY60+BY61+BY64+BY65+BY76 -> 15493153.11 | BZ59: =BZ60+BZ61+BZ64+BZ65+BZ76 -> 163885.4 | CB59: =CB60+CB61+CB64+CB65+CB73-0.01 -> 3469208.678 | CC59: =CC60+CC61+CC64+CC65+CC76 -> 21779005.34 | CD59: =CD60+CD61+CD64+CD65+CD76 -> 18111046.13 | CE59: =CE60+CE61+CE64+CE65+CE76 -> 343026.6 | CG59: =CG60+CG61+CG64+CG65+CG73 -> 3324932.61 | CH59: =CH60+CH61+CH64+CH65+CH76 -> 21779005.34 | CI59: =CI60+CI61+CI64+CI65+CI76 -> 18111046.13 | CJ59: =CJ60+CJ61+CJ64+CJ65+CJ76 -> 343026.6 | CL59: =CL60+CL61+CL64+CL65+CL73 -> 3324932.61 | CM59: х
A60: в том числе: оплата труда | AP60: 2110 | AX60: 111 | BK60: 0707 211 | BX60: =BY60+CB60+BZ60 -> 13277107.04 | BY60: =[1]Лист1!$J$52 -> 10484151.14 | BZ60: =263461.4-137589.2 -> 125872.2 | CB60: =[1]Лист1!$N$52 -> 2667083.703 | CC60: =CD60+CG60+CE60 -> 14911097.52 | CD60: =12094385.27+263461.4-263461.4 -> 12094385.27 | CE60: 263461.4 | CG60: =2553250.85 -> 2553250.85 | CH60: =CI60+CL60+CJ60 -> 14911097.52 | CI60: =12094385.27+263461.4-263461.4 -> 12094385.27 | CJ60: 263461.4 | CL60: =2553250.85 -> 2553250.85 | CM60: х
A61: оплата труда | AP61: 2111 | AX61: 111 | BK61: 0801 211 | BX61: =BY61+CB61 -> 1616105.619 | BY61: =[2]Лист1!$J$111 -> 1616105.619 | CC61: =CD61+CG61 -> 1815788.41 | CD61: =1815788.41 -> 1815788.41 | CH61: =CI61+CL61 -> 1815788.41 | CI61: =1815788.41 -> 1815788.41 | CM61: х
A62: прочие выплаты персоналу, в том числе компенсационного характера | AP62: 2120 | AX62: 112 | CM62: х
A63: иные выплаты, за исключением фонда оплаты труда учреждения, для выполнения отдельных полномочий | AP63: 2130 | AX63: 113 | CM63: х
A64: взносы по обязательному социальному страхованию на выплаты по оплате труда работников и иные выплаты работникам учреждений, всего | AP64: 2140 | AX64: 119 | BK64: 0707 213 | BX64: =BY64+CB64+BZ64 -> 3736500.683 | BY64: =[1]Лист2!$CA$86 -> 2902362.499 | BZ64: =79565.2-41552 -> 38013.2 | CB64: =[1]Лист2!$CE$86 -> 796124.9844 | CC64: =CD64+CG64+CE64 -> 4503151.31 | CD64: =3652504.35 -> 3652504.35 | CE64: 79565.2 | CG64: =771081.76 -> 771081.76 | CH64: =CI64+CL64+CJ64 -> 4503151.31 | CI64: =3652504.35 -> 3652504.35 | CJ64: 79565.2 | CL64: =771081.76 -> 771081.76 | CM64: х
A65: взносы по обязательному социальному страхованию на выплаты по оплате труда работников и иные выплаты работникам учреждений, всего | AP65: 2141 | AX65: 119 | BK65: 0801 213 | BX65: =BY65+CB65 -> 450027.0697 | BY65: =[2]Лист2!$CA$94 -> 450027.0697 | CC65: =CD65+CG65 -> 548368.1 | CD65: =548368.1 -> 548368.1 | CH65: =CI65+CL65 -> 548368.1 | CI65: =548368.1 -> 548368.1 | CM65: х
A66: в том числе: на выплаты по оплате труда | AP66: 2141 | AX66: 119 | CM66: х
A67: на иные выплаты работникам | AP67: 2142 | AX67: 119 | CM67: х
A68: денежное довольствие военнослужащих и сотрудников, имеющих специальные звания | AP68: 2150 | AX68: 131 | CM68: х
A69: иные выплаты военнослужащим и сотрудникам, имеющим специальные звания | AP69: 2160 | AX69: 134 | CM69: х
A70: страховые взносы на обязательное социальное страхование в части выплат персоналу, подлежащих обложению страховыми взносами | AP70: 2170 | AX70: 139 | CM70: х
A71: в том числе: на оплату труда стажеров | AP71: 2171 | AX71: 139 | CM71: х
A72: на иные выплаты гражданским лицам (денежное содержание) | AP72: 2172 | AX72: 139 | CM72: х
A73: социальные и иные выплаты населению, всего | AP73: 2200 | AX73: 300 | BX73: =BY73+CB73 -> 46506.78 | BY73: =BY76 -> 40506.78 | CB73: =CB76 -> 6000 | CC73: =CD73+CG73 -> 600 | CG73: =CG76 -> 600 | CH73: =CI73+CL73 -> 600 | CL73: =CL76 -> 600 | CM73: х
A74: в том числе: социальные выплаты гражданам, кроме публичных нормативных социальных выплат | AP74: 2210 | AX74: 320 | CM74: х
A75: из них: пособия, компенсации и иные социальные выплаты гражданам, кроме публичных нормативных обязательств | AP75: 2211 | AX75: 321 | CM75: х
A76: социальные пособия и компенсации персоналу в денежной форме | AP76: 2212 | AX76: 111 | BK76: 0707 266 | BX76: =BY76+CB76 -> 46506.78 | BY76: 40506.78 | CB76: 6000 | CC76: =CD76+CG76 -> 600 | CG76: 600 | CH76: =CI76+CL76 -> 600 | CL76: 600
A77: выплата стипендий, осуществление иных расходов на социальную поддержку обучающихся за счет средств стипендиального фонда | AP77: 2220 | AX77: 340 | CM77: х
A78: на премирование физических лиц за достижения в области культуры, искусства, образования, науки и техники, а также на предоставление грантов с целью поддержки проектов в области науки, культуры и искусства | AP78: 2230 | AX78: 350 | CM78: х
A79: социальное обеспечение детей-сирот и детей, оставшихся без попечения родителей | AP79: 2240 | AX79: 360 | CM79: х
A80: уплата налогов, сборов и иных платежей, всего | AP80: 2300 | AX80: 850 | BX80: =BY80+CB80 -> 150000 | CB80: =CB82 -> 150000 | CC80: =CD80+CG80 -> 150000 | CG80: =CG82 -> 150000 | CH80: =CI80+CL80 -> 150000 | CL80: =CL82 -> 150000 | CM80: х
A81: из них: налог на имущество организаций и земельный налог | AP81: 2310 | AX81: 851 | CM81: х
A82: налоги, пошлины и сборы налог на имущество организаций и земельный налог | AP82: 2320 | AX82: 852 | BK82: 0707 291 | BX82: =BY82+CB82 -> 150000 | CB82: 150000 | CC82: =CD82+CG82 -> 150000 | CG82: 150000 | CH82: =CI82+CL82 -> 150000 | CL82: 150000 | CM82: х
A83: иные налоги (включаемые в состав расходов) в бюджеты бюджетной системы Российской Федерации, а также государственная пошлина | AP83: 2320 | AX83: 852 | CM83: х
A84: уплата штрафов (в том числе административных), пеней, иных платежей | AP84: 2330 | AX84: 853 | CM84: х
A85: безвозмездные перечисления организациям и физическим лицам, всего | AP85: 2400 | AX85: х | CM85: х
A86: из них: гранты, предоставляемые другим организациям и физическим лицам | AP86: 2410 | AX86: 810 | CM86: х
A87: взносы в международные организации | AP87: 2420 | AX87: 862 | CM87: х
A88: платежи в целях обеспечения реализации соглашений с правительствами иностранных государств и международными организациями | AP88: 2430 | AX88: 863 | CM88: х
A89: прочие выплаты (кроме выплат на закупку товаров, работ, услуг) | AP89: 2500 | AX89: х | BX89: =CB89 -> 20000 | CB89: =CB91 -> 20000 | CM89: х
A90: исполнение судебных актов Российской Федерации и мировых соглашений по возмещению вреда, причиненного в результате деятельности учреждения | AP90: 2520 | AX90: 831 | CM90: х
A91: прочие расходы | AP91: 2521 | AX91: 112 | BK91: 0707 226 | BX91: =CB91 -> 20000 | CB91: 20000 | CM91: х
A92: расходы на закупку товаров, работ, услуг, всего 7 | AP92: 2600 | AX92: х | BX92: =BY92+BZ92+CA92+CB92 -> 10029340.52 | BY92: =SUM(BY93:BY116)-0.01 -> 6226345.079 | BZ92: =SUM(BZ93:BZ116) -> 1383036.4 | CB92: =SUM(CB93:CB117) -> 2419959.04 | CC92: =SUM(CC93:CC120) -> 8399500.84 | CD92: =SUM(CD93:CD120) -> 4991691.57 | CE92: =SUM(CE93:CE120) -> 1052450.24 | CG92: =SUM(CG93:CG120) -> 2355359.03 | CH92: =SUM(CH93:CH120) -> 8399500.84 | CI92: =SUM(CI93:CI120) -> 4991691.57 | CJ92: =SUM(CJ93:CJ120) -> 1052450.24 | CL92: =SUM(CL93:CL120) -> 2355359.03
A93: услуги связи | AP93: 2610 | AX93: 244 | BK93: 0707 221 | BX93: =BY93+BZ93+CA93+CB93 -> 164065.272 | BY93: =192668-BY94 -> 129395.832 | CB93: 34669.44 | CC93: =CD93+CE93+CF93+CG93 -> 164065.27 | CD93: =192668-CD94 -> 129395.83 | CG93: 34669.44 | CH93: =CI93+CJ93+CK93+CL93 -> 164065.27 | CI93: =192668-CI94 -> 129395.83 | CL93: 34669.44
A94: услуги связи | AP94: 2611 | AX94: 244 | BK94: 0801 221 | BX94: =BY94+BZ94+CA94+CB94 -> 63272.168 | BY94: =[2]Лист6!$CD$13 -> 63272.168 | CC94: =CD94+CE94+CF94+CG94 -> 63272.17 | CD94: 63272.17 | CH94: =CI94+CJ94+CK94+CL94 -> 63272.17 | CI94: 63272.17
A95: транспортные услуги | AP95: 2612 | AX95: 244 | BK95: 0707 222 | BX95: 248754 | BY95: =[1]Лист6!$CD$35 -> 192238 | BZ95: 6100 | CB95: =50416 -> 50416 | CC95: 255754 | CD95: =205338-6100 -> 199238 | CE95: 6100 | CG95: =50416 -> 50416 | CH95: 255754 | CI95: =205338-6100 -> 199238 | CJ95: 6100 | CL95: =50416 -> 50416
A96: транспортные услуги | AP96: 2613 | AX96: 244 | BK96: 0801 222 | BX96: 66650 | BY96: =[2]Лист6!$CD$40 -> 66650 | CC96: 66650 | CD96: =36050+30600 -> 66650 | CH96: 66650 | CI96: =36050+30600 -> 66650
A97: коммунальные услуги | AP97: 2614 | AX97: 244 | BK97: 0707 223 | BX97: 874121.8246 | BY97: =[1]Лист6!$CD$60 -> 729779.1546 | CB97: =[1]Лист6!$CH$60 -> 144342.67 | CC97: 907270.01 | CD97: =1043998.44-CD98 -> 762927.35 | CG97: 144342.66 | CH97: 907270.01 | CI97: =1043998.44-CI98 -> 762927.35 | CL97: 144342.66
A98: коммунальные услуги | AP98: 2615 | AX98: 244 | BK98: 0801 223 | BX98: 281071.0924 | BY98: =[2]Лист6!$CD$65 -> 281071.0924 | CC98: 281071.09 | CD98: 281071.09 | CH98: 281071.09 | CI98: 281071.09
A99: услуги по содержанию имущества | AP99: 2616 | AX99: 244 | BK99: 0707 225 | BX99: 2803279.53 | BY99: =[1]Лист7!$CD$35 -> 2010884.28 | BZ99: 630232.4 | CB99: 162162.85 | CC99: 852731.7325 | CD99: =1027222.76-CD100 -> 690568.8825 | CG99: 162162.85 | CH99: 852731.7325 | CI99: =1027222.76-CI100 -> 690568.8825 | CL99: 162162.85
A100: услуги по содержанию имущества | AP100: 2617 | AX100: 244 | BK100: 0801 225 | BX100: 163047.472 | BY100: =[2]Лист7!$CD$19 -> 163047.472 | CC100: 336653.8775 | CD100: =1025133.61*32.84% -> 336653.8775 | CH100: 336653.8775 | CI100: =1025133.61*32.84% -> 336653.8775
A101: прочие работы, услуги | AP101: 2618 | AX101: 244 | BK101: 0707 226 | BX101: 1429533.54 | BY101: =[1]Лист7!$CD$85 -> 715330.96 | BZ101: 6500 | CB101: 707702.58 | CC101: 1573344.02 | CD101: 859141.44 | CE101: 6500 | CG101: 707702.58 | CH101: 1573344.02 | CI101: 859141.44 | CJ101: 6500 | CL101: 707702.58
A102: прочие работы, услуги | AP102: 2619 | AX102: 244 | BK102: 0801 226 | BX102: 1142646.79 | BY102: =[2]Лист7!$CD$64 -> 1142646.79 | CC102: 822646.79 | CD102: =175246.79+100500+866900-320000 -> 822646.79 | CH102: 822646.79 | CI102: =175246.79+100500+866900-320000 -> 822646.79
A103: страхование | AP103: 2621 | AX103: 244 | BK103: 0707 227 | BX103: 0 | CC103: 0 | CH103: 0
A104: увеличение стоимости основных средств | AP104: 2622 | AX104: 244 | BK104: 0707 310 | BX104: 722924.88 | BZ104: =976350.24-291646.24 -> 684704 | CB104: 38220.88 | CC104: 1014571.12 | CE104: =976350.24 -> 976350.24 | CG104: 38220.88 | CH104: 1014571.12 | CJ104: =976350.24 -> 976350.24 | CL104: 38220.88
A105: увеличение стоимости лекарственных препаратов и материалов, применяемых в медицинских целях | AP105: 2623 | AX105: 244 | BK105: 0707 341 | BX105: 613.25 | BY105: =[1]Лист7!$CD$124 -> 613.25 | CC105: 613.25 | CD105: =613.25 -> 613.25 | CH105: 613.25 | CI105: =613.25 -> 613.25
A106: увеличение стоимости лекарственных препаратов и материалов, применяемых в медицинских целях | AP106: 2623 | AX106: 244 | BK106: 0801 341 | BX106: 299.87 | BY106: =[2]Лист7!$CD$86 -> 299.87 | CC106: 299.87 | CD106: 299.87 | CH106: 299.87 | CI106: 299.87
A107: увеличение стоимости продуктов питания | AP107: 2624 | AX107: 244 | BK107: 0707 342 | BX107: 1094420 | BY107: =[1]Лист7!$CD$131 -> 77800 | BZ107: 25500 | CB107: 991120 | CC107: 1094420 | CD107: =103300-25500 -> 77800 | CE107: 25500 | CG107: 991120 | CH107: 1094420 | CI107: =103300-25500 -> 77800 | CJ107: 25500 | CL107: 991120
A108: увеличение стоимости продуктов питания | AP108: 2625 | AX108: 244 | BK108: 0801 342 | BX108: 103693.4 | BY108: =[2]Лист7!$CD$90 -> 103693.4 | CC108: 103693.4 | CD108: =31000+72693.4 -> 103693.4 | CH108: 103693.4 | CI108: =31000+72693.4 -> 103693.4
A109: увеличение стоимости мягкого инвентаря | AP109: 2626 | AX109: 244 | BK109: 0707 345 | BX109: 18345.16 | BY109: =[1]Лист7!$CD$135 -> 18345.16 | CC109: 18345.16 | CD109: =18345.16 -> 18345.16 | CH109: 18345.16 | CI109: =18345.16 -> 18345.16
A110: увеличение стоимости мягкого инвентаря | AP110: 2627 | AX110: 244 | BK110: 0801 345 | BX110: 8970.44 | BY110: =[2]Лист7!$CD$98 -> 8970.44 | CC110: 8970.44 | CD110: 8970.44 | CH110: 8970.44 | CI110: 8970.44
A111: увеличение стоимости прочих оборотных запасов (материалов) | AP111: 2625 | AX111: 244 | BK111: 0707 346 | BX111: 423134.03 | BY111: =[1]Лист7!$CD$158 -> 156593.41 | BZ111: 17000 | CB111: =185540.62+64000 -> 249540.62 | CC111: 385790.7 | CD111: =85156.08+51300+63794-17000 -> 183250.08 | CE111: 17000 | CG111: 185540.62 | CH111: 385790.7 | CI111: =85156.08+51300+63794-17000 -> 183250.08 | CJ111: 17000 | CL111: 185540.62
A112: увеличение стоимости прочих оборотных запасов (материалов) | AP112: 2626 | AX112: 244 | BK112: 0801 346 | BX112: 141537.17 | BY112: =[2]Лист7!$CD$119 -> 141537.17 | CC112: 141877.3 | CD112: =48451.7+21719+71706.6 -> 141877.3 | CH112: 141877.3 | CI112: =48451.7+21719+71706.6 -> 141877.3
A113: Увеличение стоимости материальных запасов для целей капитальных вложений | AP113: 2627 | AX113: 244 | BK113: 0707 347 | BX113: 21960.64 | BY113: =[1]Лист7!$CD$160 -> 11976.64 | CB113: 9984 | CC113: 21960.64 | CD113: 11976.64 | CG113: 9984 | CH113: 21960.64 | CI113: 11976.64 | CL113: 9984
A114: Увеличение стоимости материальных запасов для целей капитальных вложений | AP114: 2628 | AX114: 244 | BK114: 0801 347 | BX114: 0 | CC114: 0 | CH114: 0
A115: увеличение стоимости прочих материальных запасов однократного применения | AP115: 2629 | AX115: 244 | BK115: 0707 349 | BX115: 191400 | BY115: =[1]Лист7!$CD$175 -> 147200 | BZ115: =21000-8000 -> 13000 | CB115: 31200 | CC115: 220500 | CD115: =54900+134400-21000 -> 168300 | CE115: 21000 | CG115: 31200 | CH115: 220500 | CI115: =54900+134400-21000 -> 168300 | CJ115: 21000 | CL115: 31200
A116: увеличение стоимости прочих материальных запасов однократного применения | AP116: 2630 | AX116: 244 | BK116: 0801 349 | BX116: 65000 | BY116: =[2]Лист7!$CD$123 -> 65000 | CC116: 65000 | CD116: =65000 -> 65000 | CH116: 65000 | CI116: =65000 -> 65000
A117: Увеличение стоимости горюче-смазочных материалов | AP117: 2631 | AX117: 244 | BK117: 0707 343 | BX117: =BY117+BZ117+CA117+CB117 -> 600 | CB117: 600 | CC117: =CD117+CE117+CF117+CG117 -> 0 | CH117: =CI117+CJ117+CK117+CL117 -> 0
A118: прочую закупку товаров, работ и услуг, всего | AP118: 2640 | AX118: 244
A119: из них:
A121: капитальные вложения в объекты государственной (муниципальной) собственности, всего | AP121: 2650 | AX121: 400
A122: в том числе: приобретение объектов недвижимого имущества муниципальными учреждениями | AP122: 2651 | AX122: 406
A123: строительство (реконструкция) объектов недвижимого имущества муниципальными учреждениями | AP123: 2652 | AX123: 407
A124: Выплаты, уменьшающие доход, всего 8 | AP124: 3000 | AX124: 100 | CM124: х
A125: в том числе: налог на прибыль 8 | AP125: 3010 | CM125: х
A126: налог на добавленную стоимость 8 | AP126: 3020 | CM126: х
A127: прочие налоги, уменьшающие доход 8 | AP127: 3030 | CM127: х
A128: Прочие выплаты, всего 9 | AP128: 4000 | AX128: х | CM128: х
A129: из них: возврат в бюджет средств субсидии | AP129: 4010 | AX129: 610 | CM129: х
A132: _____1_В случае утверждения закона (решения) о бюджете на текущий финансовый год и плановый период.
A133: _____2_Указывается дата подписания Плана, а в случае утверждения Плана уполномоченным лицом учреждения - дата утверждения Плана.
A134: _____3_В графе 3 отражаются:
A135: _____по строкам 1100 - 1900 - коды аналитической группы подвида доходов бюджетов классификации доходов бюджетов;
A136: _____по строкам 1980 - 1990 - коды аналитической группы вида источников финансирования дефицитов бюджетов классификации источников финансирования дефицитов бюджетов;
A137: _____по строкам 2000 - 2652 - коды видов расходов бюджетов классификации расходов бюджетов;
A138: _____по строкам 3000 - 3030 - коды аналитической группы подвида доходов бюджетов классификации доходов бюджетов, по которым планируется уплата налогов, уменьшающих доход (в том числе налог на прибыль, налог на добавленную стоимость, единый налог на вмененный доход для отдельных видов деятельности);
A139: _____по строкам 4000 - 4040 - коды аналитической группы вида источников финансирования дефицитов бюджетов классификации источников финансирования дефицитов бюджетов.
A140: _____4_В графе 4 указывается код классификации операций сектора государственного управления в соответствии с Порядком применения классификации операций сектора государственного управления, утвержденным приказом Министерства финансов Российской Федерации от 29 ноября 2017 г. № 209н (зарегистрирован в Министерстве юстиции Российской Федерации 12 февраля 2018 г., регистрационный номер 50003), и код функциональной статьи расходов
A141: _____5_По строкам 0001 и 0002 указываются планируемые суммы остатков средств на начало и на конец планируемого года, если указанные показатели по решению органа, осуществляющего функции и полномочия учредителя, планируются на этапе формирования проекта Плана либо указываются фактические остатки средств при внесении изменений в утвержденный План после завершения отчетного финансового года.
A142: _____6_Показатели прочих поступлений включают в себя в том числе показатели увеличения денежных средств за счет возврата дебиторской задолженности прошлых лет, включая возврат предоставленных займов (микрозаймов), а также за счет возврата средств, размещенных на банковских депозитах. При формировании Плана (проекта Плана) обособленному(ым) подразделению(ям) показатель прочих поступлений включает показатель поступлений в рамках расчетов между головным учреждением и обособленным подразделением.
A143: _____7_Показатели выплат по расходам на закупки товаров, работ, услуг, отраженные в строке 2600 Раздела 1 "Поступления и выплаты" Плана, подлежат детализации в Разделе 2 "Сведения по выплатам на закупку товаров, работ, услуг" Плана.
A144: _____8_Показатель отражается со знаком "минус".
A145: _____9_Показатели прочих выплат включают в себя в том числе показатели уменьшения денежных средств за счет возврата средств субсидий, предоставленных до начала текущего финансового года, предоставления займов (микрозаймов), размещения автономными учреждениями денежных средств на банковских депозитах. При формировании Плана (проекта Плана) обособленному(ым) подразделению(ям) показатель прочих выплат включает показатель поступлений в рамках расчетов между головным учреждением и обособленным подразделением.
BX149: 0707 | BY149: =BY60+BY64+BY76+BY93+BY95+BY97+BY99+BY101+BY105+BY107+BY109+BY111+BY113+BY115-0.01 -> 17617177.1
BX150: 0801 | BY150: =BY61+BY65+BY94+BY96+BY98+BY100+BY102+BY106+BY108+BY110+BY112+BY116 -> 4102321.092
BY151: =BY149+BY150 -> 21719498.19

Sheet раздел 2
B1: Раздел 2. Сведения по выплатам на закупки товаров, работ, услуг 10
A3: № п/п | I3: Наименование показателя | CN3: Коды строк | CV3: Год начала закупки | DF3: Сумма
DF4: на 20 | DL4: 20 | DO4: г. | DS4: на 20 | DY4: 21 | EB4: г. | EF4: на 20 | EL4: 22 | EO4: г. | ES4: за пределами планового периода
DF5: (текущий финансовый год) | DS5: (первый год планового периода) | EF5: (второй год планового периода)
A6: 1 | I6: 2 | CN6: 3 | CV6: 4 | DF6: 5 | DS6: 6 | EF6: 7 | ES6: 8
A7: 1 | I7: Выплаты на закупку товаров, работ, услуг, всего 11 | CN7: 26000 | CV7: х | DF7: =DF11 -> 10029340.52 | DS7: =DS11 -> 8399500.84 | EF7: =EF11 -> 8399500.84
A8: 1.1 | I8: в том числе: по контрактам (договорам), заключенным до начала текущего финансового года без применения норм Федерального закона от 5 апреля 2013 г. № 44-ФЗ "О контрактной системе в сфере закупок товаров, работ, услуг для обеспечения государственных и муниципальных нужд" (далее - Федеральный закон № 44-ФЗ) и Федерального закона от 18 июля 2011 г. № 223-ФЗ "О закупках товаров, работ, услуг отдельными видами юридических лиц"(далее - Федеральный закон № 223-ФЗ)12 | CN8: 26100 | CV8: х
A9: 1.2 | I9: по контрактам (договорам), планируемым к заключению в соответствующем финансовом году без применения норм Федерального закона № 44-ФЗ и Федерального закона № 223-ФЗ 12 | CN9: 26200 | CV9: х
A10: 1.3 | I10: по контрактам (договорам), заключенным до начала текущего финансового года с учетом требований Федерального закона № 44-ФЗ и Федерального закона № 223-ФЗ 13 | CN10: 26300 | CV10: х
A11: 1.4 | I11: по контрактам (договорам), планируемым к заключению в соответствующем финансовом году с учетом требований Федерального закона № 44-ФЗ и Федерального закона № 223-ФЗ 13 | CN11: 26400 | CV11: х | DF11: =DF12+DF38+DF45 -> 10029340.52 | DS11: =DS12+DS38+DS45 -> 8399500.84 | EF11: =EF12+EF38+EF45 -> 8399500.84
A12: 1.4.1 | I12: в том числе: за счет субсидий, предоставляемых на финансовое обеспечение выполнения муниципального задания | CN12: 26410 | CV12: х | DF12: ='раздел 1'!BY92 -> 6226345.079 | DS12: ='раздел 1'!CD92 -> 4991691.57 | EF12: ='раздел 1'!CI92 -> 4991691.57
A13: 1.4.1.1 | I13: в том числе: в соответствии с Федеральным законом № 44-ФЗ | CN13: 26411 | CV13: х
A14: 1.4.1.2 | I14: в соответствии с Федеральным законом № 223-ФЗ 14 | CN14: 26412 | CV14: х | DF14: =DF12 -> 6226345.079 | DS14: =DS12 -> 4991691.57 | EF14: =EF12 -> 4991691.57
I15: услуги связи | CV15: х | DF15: ='раздел 1'!BX93 -> 164065.272 | DS15: ='раздел 1'!CC93 -> 164065.27 | EF15: ='раздел 1'!CH93 -> 164065.27
I16: услуги связи | CV16: х | DF16: ='раздел 1'!BX94 -> 63272.168 | DS16: ='раздел 1'!CC94 -> 63272.17 | EF16: ='раздел 1'!CH94 -> 63272.17
I17: транспортные услуги | CV17: х | DF17: ='раздел 1'!BX95 -> 248754 | DS17: ='раздел 1'!CC95 -> 255754 | EF17: ='раздел 1'!CH95 -> 255754
I18: транспортные услуги | CV18: х | DF18: ='раздел 1'!BX96 -> 66650 | DS18: ='раздел 1'!CC96 -> 66650 | EF18: ='раздел 1'!CH96 -> 66650
I19: коммунальные услуги | CV19: х | DF19: ='раздел 1'!BX97 -> 874121.8246 | DS19: ='раздел 1'!CC97 -> 907270.01 | EF19: ='раздел 1'!CH97 -> 907270.01
I20: коммунальные услуги | CV20: х | DF20: ='раздел 1'!BX98 -> 281071.0924 | DS20: ='раздел 1'!CC98 -> 281071.09 | EF20: ='раздел 1'!CH98 -> 281071.09
I21: услуги по содержанию имущества | CV21: х | DF21: ='раздел 1'!BX99 -> 2803279.53 | DS21: ='раздел 1'!CC99 -> 852731.7325 | EF21: ='раздел 1'!CH99 -> 852731.7325
I22: услуги по содержанию имущества | CV22: х | DF22: ='раздел 1'!BX100 -> 163047.472 | DS22: ='раздел 1'!CC100 -> 336653.8775 | EF22: ='раздел 1'!CH100 -> 336653.8775
I23: прочие работы, услуги | CV23: х | DF23: ='раздел 1'!BX101 -> 1429533.54 | DS23: ='раздел 1'!CC101 -> 1573344.02 | EF23: ='раздел 1'!CH101 -> 1573344.02
I24: прочие работы, услуги | CV24: х | DF24: ='раздел 1'!BX102 -> 1142646.79 | DS24: ='раздел 1'!CC102 -> 822646.79 | EF24: ='раздел 1'!CH102 -> 822646.79
I25: страхование | CV25: х | DF25: ='раздел 1'!BX103 -> 0 | DS25: ='раздел 1'!CC103 -> 0 | EF25: ='раздел 1'!CH103 -> 0
I26: увеличение стоимости основных средств | CV26: х | DF26: ='раздел 1'!BX104 -> 722924.88 | DS26: ='раздел 1'!CC104 -> 1014571.12 | EF26: ='раздел 1'!CH104 -> 1014571.12
I27: увеличение стоимости лекарственных препаратов и материалов, применяемых в медицинских целях | CV27: х | DF27: ='раздел 1'!BX105 -> 613.25 | DS27: ='раздел 1'!CC105 -> 613.25 | EF27: ='раздел 1'!CH105 -> 613.25
I28: увеличение стоимости лекарственных препаратов и материалов, применяемых в медицинских целях | CV28: х | DF28: ='раздел 1'!BX106 -> 299.87 | DS28: ='раздел 1'!CC106 -> 299.87 | EF28: ='раздел 1'!CH106 -> 299.87
I29: увеличение стоимости продуктов питания | CV29: х | DF29: ='раздел 1'!BX107 -> 1094420 | DS29: ='раздел 1'!CC107 -> 1094420 | EF29: ='раздел 1'!CH107 -> 1094420
I30: увеличение стоимости продуктов питания | CV30: х | DF30: ='раздел 1'!BX108 -> 103693.4 | DS30: ='раздел 1'!CC108 -> 103693.4 | EF30: ='раздел 1'!CH108 -> 103693.4
I31: увеличение стоимости мягкого инвентаря | CV31: х | DF31: ='раздел 1'!BX109 -> 18345.16 | DS31: ='раздел 1'!CC109 -> 18345.16 | EF31: ='раздел 1'!CH109 -> 18345.16
I32: увеличение стоимости мягкого инвентаря | CV32: х | DF32: ='раздел 1'!BX110 -> 8970.44 | DS32: ='раздел 1'!CC110 -> 8970.44 | EF32: ='раздел 1'!CH110 -> 8970.44
I33: увеличение стоимости прочих оборотных запасов (материалов) | CV33: х | DF33: ='раздел 1'!BX111 -> 423134.03 | DS33: ='раздел 1'!CC111 -> 385790.7 | EF33: ='раздел 1'!CH111 -> 385790.7
I34: увеличение стоимости прочих оборотных запасов (материалов) | CV34: х | DF34: ='раздел 1'!BX112 -> 141537.17 | DS34: ='раздел 1'!CC112 -> 141877.3 | EF34: ='раздел 1'!CH112 -> 141877.3
I35: Увеличение стоимости материальных запасов для целей капитальных вложений | CV35: х | DF35: ='раздел 1'!BX113 -> 21960.64 | DS35: =DF35 -> 21960.64 | EF35: =DS35 -> 21960.64
I36: увеличение стоимости прочих материальных запасов однократного применения | CV36: х | DF36: ='раздел 1'!BX115 -> 191400 | DS36: ='раздел 1'!CC115 -> 220500 | EF36: ='раздел 1'!CH115 -> 220500
I37: увеличение стоимости прочих материальных запасов однократного применения | CV37: х | DF37: ='раздел 1'!BX116 -> 65000 | DS37: ='раздел 1'!CC116 -> 65000 | EF37: ='раздел 1'!CH116 -> 65000
A38: 1.4.2 | I38: за счет субсидий, предоставляемых в соответствии с абзацем вторым пункта 1 статьи 78.1 Бюджетного кодекса Российской Федерации | CN38: 26420 | CV38: х | DF38: =DF40 -> 1383036.4 | DS38: =DS40 -> 1052450.24 | EF38: =EF40 -> 1052450.24
A39: 1.4.2.1 | I39: в том числе: в соответствии с Федеральным законом № 44-ФЗ | CN39: 26421 | CV39: х
A40: 1.4.2.2 | I40: в соответствии с Федеральным законом № 223-ФЗ 14 | CN40: 26422 | CV40: х | DF40: ='раздел 1'!BZ92 -> 1383036.4 | DS40: ='раздел 1'!CE92 -> 1052450.24 | EF40: ='раздел 1'!CJ92 -> 1052450.24
A41: 1.4.3 | I41: за счет субсидий, предоставляемых на осуществление капитальных вложений 15 | CN41: 26430 | CV41: х
A42: 1.4.4 | I42: за счет средств обязательного медицинского страхования | CN42: 26440 | CV42: х
A43: 1.4.4.1 | I43: в том числе: в соответствии с Федеральным законом № 44-ФЗ | CN43: 26441 | CV43: х
A44: 1.4.4.2 | I44: в соответствии с Федеральным законом № 223-ФЗ 14 | CN44: 26442 | CV44: х
A45: 1.4.5 | I45: за счет прочих источников финансового обеспечения | CN45: 26450 | CV45: х | DF45: =DF47 -> 2419959.04 | DS45: =DS47 -> 2355359.03 | EF45: =EF47 -> 2355359.03
A46: 1.4.5.1 | I46: в том числе: в соответствии с Федеральным законом № 44-ФЗ | CN46: 26451 | CV46: х
A47: 1.4.5.2 | I47: в соответствии с Федеральным законом № 223-ФЗ | CN47: 26452 | CV47: х | DF47: ='раздел 1'!CB92 -> 2419959.04 | DS47: ='раздел 1'!CG92 -> 2355359.03 | EF47: ='раздел 1'!CL92 -> 2355359.03
A48: 2 | I48: Итого по контрактам, планируемым к заключению в соответствующем финансовом году в соответствии с Федеральным законом № 44-ФЗ, по соответствующему году закупки 16 | CN48: 26500 | CV48: х
I49: в том числе по году начала закупки: | CN49: 26510
A51: 3 | I51: Итого по договорам, планируемым к заключению в соответствующем финансовом году в соответствии с Федеральным законом № 223-ФЗ, по соответствующему году закупки | CN51: 26600 | CV51: х
I52: в том числе по году начала закупки: | CN52: 26610
I55: Руководитель учреждения
I56: (уполномоченное лицо учреждения) | AQ56: Заместитель директора | BY56: Гырля М.С..
AQ57: (должность) | BK57: (подпись) | BY57: (расшифровка подписи)
I59: Исполнитель | AM59: Ведущий экономист | CA59: Николаева Л.В.
AM60: (должность) | BG60: (фамилия, инициалы) | CA60: (телефон)
I62: " | N62: " | AF62: 20 | AL62: г.
A65: СОГЛАСОВАНО
A67: (наименование должности уполномоченного лица Учредителя)
A70: (подпись) | AH70: (расшифровка подписи)
A72: " | F72: " | X72: 20 | AD72: г.
A75: _____10_В Разделе 2 "Сведения по выплатам на закупку товаров, работ, услуг" Плана детализируются показатели выплат по расходам на закупку товаров, работ, услуг, отраженные в строке 2600 Раздела 1 "Поступления и выплаты" Плана.
A76: _____11_Плановые показатели выплат на закупку товаров, работ, услуг по строке 26000 Раздела 2 "Сведения по выплатам на закупку товаров, работ, услуг" Плана распределяются на выплаты по контрактам (договорам), заключенным (планируемым к заключению) в соответствии с гражданским законодательством Российской Федерации (строки 26100 и 26200), а также по контрактам (договорам), заключаемым в соответствии с требованиями законодательства Российской Федерации и иных нормативных правовых актов о контрактной системе в сфере закупок товаров, работ, услуг для муниципальных нужд, с детализацией указанных выплат по контрактам (договорам), заключенным до начала текущего финансового года (строка 26300) и планируемым к заключению в соответствующем финансовом году (строка 26400) и должны соответствовать показателям соответствующих граф по строке 2600 Раздела 1 "Поступления и выплаты" Плана.
A77: _____12_Указывается сумма договоров (контрактов) о закупках товаров, работ, услуг, заключенных без учета требований Федерального закона № 44-ФЗ и Федерального закона № 223-ФЗ, в случаях, предусмотренных указанными федеральными законами.
A78: _____13_Указывается сумма закупок товаров, работ, услуг, осуществляемых в соответствии с Федеральным законом № 44-ФЗ и Федеральным законом № 223-ФЗ.
A79: _____14_Государственным (муниципальным) бюджетным учреждением показатель не формируется.
A80: _____15_Указывается сумма закупок товаров, работ, услуг, осуществляемых в соответствии с Федеральным законом № 44-ФЗ.
A81: _____16_Плановые показатели выплат на закупку товаров, работ, услуг по строке 26500 муниципального бюджетного учреждения должен быть не менее суммы показателей строк 26410, 26420, 26430, 26440 по соответствующей графе, муниципального автономного учреждения - не менее показателя строки 26430 по соответствующей графе.
